[Event "The Schackveckan 2023: IM-turnering"]
[Site "Goteborgs schackcentrum, Vegagatan 20, Gothenburg, Sweden"]
[Date "2023.08.06"]
[Round "2.4"]
[White "Hector, Jonny"]
[Black "Ustianovich, Nazar"]
[Result "0-1"]
[TimeControl "90 minutes for 40 moves + 30 minutes for the rest of the game + 30 seconds per move from move one."]
[WhiteTitle "GM"]
[BlackTitle "FM"]
[WhiteFideId "1700090"]
[BlackFideId "14109778"]
[WhiteElo "2466"]
[BlackElo "2314"]

1. e4 {[%clk 01:30:55]} {[%emt 00:00:04]} e5 {[%clk 01:30:23]} {[%emt
00:00:39]} 2. Nf3 {[%clk 01:31:11]} {[%emt 00:00:12]} Nc6 {[%clk 01:30:50]}
{[%emt 00:00:04]} 3. Bc4 {[%clk 01:31:23]} {[%emt 00:00:17]} Bc5 {[%clk
01:31:09]} {[%emt 00:00:13]} 4. O-O {[%clk 01:30:43]} {[%emt 00:01:08]} Nf6
{[%clk 01:31:34]} {[%emt 00:00:05]} 5. d4 {[%clk 01:30:53]} {[%emt 00:00:20]}
Bxd4 {[%clk 01:31:43]} {[%emt 00:00:22]} 6. Nxd4 {[%clk 01:31:13]} {[%emt
00:00:09]} Nxd4 {[%clk 01:32:10]} {[%emt 00:00:05]} 7. Bg5 {[%clk 01:31:22]}
{[%emt 00:00:19]} d6 {[%clk 01:30:19]} {[%emt 00:02:22]} 8. f4 {[%clk
01:31:27]} {[%emt 00:00:23]} Bg4 {[%clk 01:28:39]} {[%emt 00:02:12]} 9. Bxf6
{[%clk 01:28:22]} {[%emt 00:03:35]} Bxd1 {[%clk 01:27:40]} {[%emt 00:01:29]} 10.
Bxd8 {[%clk 01:28:43]} {[%emt 00:00:09]} Rxd8 {[%clk 01:27:34]} {[%emt
00:00:37]} 11. c3 {[%clk 01:28:31]} {[%emt 00:00:41]} Be2 {[%clk 01:17:48]}
{[%emt 00:10:16]} 12. cxd4 {[%clk 01:27:48]} {[%emt 00:01:13]} Bxc4 {[%clk
01:16:00]} {[%emt 00:02:18]} 13. Rc1 {[%clk 01:28:07]} {[%emt 00:00:10]} Ba6
{[%clk 01:05:27]} {[%emt 00:11:04]} 14. Rxc7 {[%clk 01:27:31]} {[%emt
00:01:05]} exd4 {[%clk 01:02:53]} {[%emt 00:03:06]} 15. Na3 {[%clk 01:14:17]}
{[%emt 00:13:43]} Rd7 {[%clk 00:38:10]} {[%emt 00:25:14]} 16. Rc8+ {[%clk
01:13:46]} {[%emt 00:00:59]} Rd8 {[%clk 00:38:39]} {[%emt 00:00:02]} 17. Rxd8+
{[%clk 01:12:01]} {[%emt 00:02:15]} Kxd8 {[%clk 00:39:06]} {[%emt 00:00:04]} 18.
Rd1 {[%clk 01:12:14]} {[%emt 00:00:14]} d3 {[%clk 00:39:02]} {[%emt 00:00:36]}
19. b4 {[%clk 01:00:04]} {[%emt 00:12:39]} b6 {[%clk 00:39:30]} {[%emt
00:00:03]} 20. b5 {[%clk 01:00:21]} {[%emt 00:00:13]} Bb7 {[%clk 00:40:00]}
{[%emt 00:00:01]} 21. Rxd3 {[%clk 01:00:32]} {[%emt 00:00:18]} Kc7 {[%clk
00:28:39]} {[%emt 00:13:29]} 22. e5 {[%clk 00:40:36]} {[%emt 00:18:48]} dxe5
{[%clk 00:27:05]} {[%emt 00:02:05]} 23. fxe5 {[%clk 00:40:56]} {[%emt
00:00:09]} Rd8 {[%clk 00:26:12]} {[%emt 00:01:23]} 24. Rc3+ {[%clk 00:29:22]}
{[%emt 00:12:03]} Kb8 {[%clk 00:26:35]} {[%emt 00:00:08]} 25. Rc2 {[%clk
00:29:34]} {[%emt 00:00:18]} Rd3 {[%clk 00:20:30]} {[%emt 00:06:35]} 26. Nc4
{[%clk 00:29:50]} {[%emt 00:00:14]} Rd5 {[%clk 00:20:14]} {[%emt 00:00:46]} 27.
Rb2 {[%clk 00:24:42]} {[%emt 00:05:38]} Bc8 {[%clk 00:10:20]} {[%emt 00:10:25]}
28. Nd6 {[%clk 00:14:49]} {[%emt 00:10:21]} Be6 {[%clk 00:10:43]} {[%emt
00:00:08]} 29. Re2 {[%clk 00:15:01]} {[%emt 00:00:16]} Rd1+ {[%clk 00:10:55]}
{[%emt 00:00:21]} 30. Kf2 {[%clk 00:15:22]} {[%emt 00:00:07]} Ra1 {[%clk
00:11:24]} {[%emt 00:00:03]} 31. Ke3 {[%clk 00:14:17]} {[%emt 00:01:33]} Rxa2
{[%clk 00:08:38]} {[%emt 00:03:17]} 32. Rxa2 {[%clk 00:14:38]} {[%emt
00:00:10]} Bxa2 {[%clk 00:09:05]} {[%emt 00:00:03]} 33. Kd4 {[%clk 00:14:02]}
{[%emt 00:01:05]} Be6 {[%emt 00:05:28]} 34. h4 {[%clk 00:12:23]} {[%emt
00:02:06]} g6 {[%clk 00:03:01]} {[%emt 00:01:39]} 35. g3 {[%clk 00:04:36]}
{[%emt 00:08:16]} Kc7 {[%clk 00:02:01]} {[%emt 00:01:32]} 36. h5 {[%clk
00:01:46]} {[%emt 00:03:19]} gxh5 {[%emt 00:01:49]} 37. Ne8+ {[%clk 00:02:06]}
Kd8 {[%clk 00:01:01]} {[%emt 00:00:21]} 38. Nf6 {[%clk 00:02:26]} {[%emt
00:00:08]} Bg4 {[%clk 00:00:53]} {[%emt 00:00:40]} 39. Kd5 {[%clk 00:01:54]}
{[%emt 00:01:01]} Kc7 {[%clk 00:01:06]} {[%emt 00:00:17]} 40. Ne8+ {[%clk
00:01:31]} {[%emt 00:00:53]} Kd7 {[%clk 00:01:01]} {[%emt 00:00:35]} 41. Nf6+
{[%clk 00:01:50]} {[%emt 00:00:10]} Kc7 {[%clk 00:01:02]} {[%emt 00:00:30]} 42.
Ne8+ {[%clk 00:01:17]} {[%emt 00:01:02]} Kd8 {[%clk 00:22:06]} {[%emt
00:09:28]} 43. Nf6 {[%clk 00:31:10]} {[%emt 00:00:36]} Ke7 {[%clk 00:09:49]}
{[%emt 00:12:48]} 44. Ng8+ {[%clk 00:30:48]} {[%emt 00:00:50]} Kf8 {[%clk
00:09:00]} {[%emt 00:01:21]} 45. Nf6 {[%clk 00:31:07]} {[%emt 00:00:09]} Kg7
{[%clk 00:06:05]} {[%emt 00:03:26]} 46. Kc6 {[%clk 00:27:47]} {[%emt 00:03:49]}
Bf3+ {[%clk 00:03:46]} {[%emt 00:02:51]} 47. Kc7 {[%clk 00:27:49]} {[%emt
00:00:27]} Kg6 {[%clk 00:03:47]} {[%emt 00:00:29]} 48. Kb8 {[%clk 00:27:53]}
{[%emt 00:00:25]} Kf5 {[%clk 00:01:11]} {[%emt 00:03:07]} 49. Kxa7 {[%clk
00:26:04]} {[%emt 00:02:19]} Kxe5 {[%clk 00:01:38]} {[%emt 00:00:03]} 50. Nxh7
{[%clk 00:25:06]} {[%emt 00:01:27]} Kf5 {[%clk 00:01:25]} {[%emt 00:00:43]} 51.
Kxb6 {[%clk 00:25:07]} {[%emt 00:00:30]} Kg4 {[%clk 00:01:10]} {[%emt
00:00:46]} 52. Kc5 {[%clk 00:24:53]} {[%emt 00:00:43]} Kxg3 {[%clk 00:01:15]}
{[%emt 00:00:25]} 53. Nf6 {[%clk 00:24:54]} {[%emt 00:00:28]} h4 {[%clk
00:01:12]} {[%emt 00:00:35]} 54. b6 {[%clk 00:24:26]} {[%emt 00:00:57]} h3
{[%clk 00:01:16]} {[%emt 00:00:27]} 55. Nh5+ {[%clk 00:24:27]} {[%emt
00:00:27]} Kh4 {[%clk 00:00:43]} {[%emt 00:01:04]} 56. Kd4 {[%clk 00:20:22]}
{[%emt 00:00:32]} 0-1

[Event "The Schackveckan 2023: IM-turnering"]
[Site "Goteborgs schackcentrum, Vegagatan 20, Gothenburg, Sweden"]
[Date "2023.08.06"]
[Round "2.5"]
[White "Olsson, William"]
[Black "Karlsson, Stefan"]
[Result "1-0"]
[TimeControl "90 minutes for 40 moves + 30 minutes for the rest of the game + 30 seconds per move from move one."]
[WhiteTitle "FM"]
[WhiteFideId "1741721"]
[BlackFideId "1771183"]
[WhiteElo "2400"]
[BlackElo "1925"]

1. c4 {[%clk 01:30:58]} {[%emt 00:00:02]} Nf6 {[%clk 01:13:42]} {[%emt
00:17:18]} 2. g3 {[%clk 01:31:09]} {[%emt 00:00:19]} g6 {[%clk 01:14:05]}
{[%emt 00:00:07]} 3. Bg2 {[%clk 01:31:35]} {[%emt 00:00:04]} Bg7 {[%clk
01:14:30]} {[%emt 00:00:05]} 4. Nc3 {[%clk 01:32:00]} {[%emt 00:00:06]} O-O
{[%clk 01:14:53]} {[%emt 00:00:07]} 5. Nf3 {[%clk 01:30:41]} {[%emt 00:01:49]}
d6 {[%clk 01:15:15]} {[%emt 00:00:07]} 6. O-O {[%clk 01:31:01]} {[%emt
00:00:11]} e5 {[%clk 01:15:04]} {[%emt 00:00:40]} 7. d3 {[%clk 01:28:50]}
{[%emt 00:02:41]} Nc6 {[%clk 01:14:25]} {[%emt 00:01:08]} 8. Rb1 {[%clk
01:29:16]} {[%emt 00:00:05]} a5 {[%clk 01:14:02]} {[%emt 00:00:52]} 9. a3
{[%clk 01:29:44]} {[%emt 00:00:03]} Nd4 {[%clk 01:13:27]} {[%emt 00:01:04]} 10.
b4 {[%clk 01:24:32]} {[%emt 00:05:43]} axb4 {[%clk 01:13:46]} {[%emt 00:00:11]}
11. axb4 {[%clk 01:24:59]} {[%emt 00:00:03]} Ne6 {[%clk 01:12:38]} {[%emt
00:01:38]} 12. Bb2 {[%clk 01:23:19]} {[%emt 00:02:10]} c6 {[%clk 01:10:30]}
{[%emt 00:02:38]} 13. Ra1 {[%clk 01:12:46]} {[%emt 00:11:03]} Bd7 {[%clk
01:10:13]} {[%emt 00:00:48]} 14. Rxa8 {[%clk 01:10:58]} {[%emt 00:02:17]} Qxa8
{[%clk 01:10:40]} {[%emt 00:00:03]} 15. Qc2 {[%clk 01:11:16]} {[%emt 00:00:12]}
Nh5 {[%clk 00:47:02]} {[%emt 00:24:08]} 16. Na4 {[%clk 01:01:34]} {[%emt
00:10:12]} f6 {[%clk 00:34:15]} {[%emt 00:13:17]} 17. e3 {[%clk 00:57:20]}
{[%emt 00:04:43]} Ng5 {[%clk 00:24:30]} {[%emt 00:10:16]} 18. Nxg5 {[%clk
00:52:25]} {[%emt 00:05:26]} fxg5 {[%clk 00:24:54]} {[%emt 00:00:05]} 19. Nb6
{[%clk 00:51:58]} {[%emt 00:00:57]} Qd8 {[%clk 00:20:46]} {[%emt 00:04:38]} 20.
Nxd7 {[%clk 00:50:29]} {[%emt 00:01:59]} Qxd7 {[%clk 00:21:07]} {[%emt
00:00:10]} 21. Ra1 {[%clk 00:50:49]} {[%emt 00:00:07]} Nf6 {[%clk 00:08:36]}
{[%emt 00:13:03]} 22. h3 {[%clk 00:50:04]} {[%emt 00:01:16]} Ne8 {[%clk
00:03:18]} {[%emt 00:05:48]} 23. Ra7 {[%clk 00:49:56]} {[%emt 00:00:36]} Rf7
{[%clk 00:03:26]} {[%emt 00:00:23]} 24. b5 {[%clk 00:49:10]} {[%emt 00:01:16]}
Qe6 {[%clk 00:02:22]} {[%emt 00:01:34]} 25. bxc6 {[%clk 00:48:31]} {[%emt
00:01:09]} bxc6 {[%clk 00:02:50]} {[%emt 00:00:01]} 26. Bxc6 {[%clk 00:48:45]}
{[%emt 00:00:17]} Rxa7 {[%clk 00:01:39]} 27. Bd5 {[%clk 00:49:11]} {[%emt
00:01:45]} Qxd5 {[%clk 00:02:00]} {[%emt 00:00:09]} 28. cxd5 {[%clk 00:49:37]}
{[%emt 00:00:04]} Rc7 {[%clk 00:02:06]} {[%emt 00:00:23]} 29. Qb3 {[%clk
00:49:58]} {[%emt 00:00:10]} h5 {[%clk 00:02:03]} {[%emt 00:00:32]} 30. e4
{[%clk 00:45:27]} {[%emt 00:05:02]} Kf7 {[%clk 00:02:03]} {[%emt 00:00:30]} 31.
Qb4 {[%clk 00:45:37]} {[%emt 00:00:20]} Re7 {[%clk 00:01:30]} {[%emt 00:01:02]}
32. Qb6 {[%clk 00:44:38]} {[%emt 00:01:29]} Kg8 {[%clk 00:01:02]} {[%emt
00:00:58]} 33. Ba3 {[%clk 00:44:55]} {[%emt 00:00:14]} Rd7 {[%clk 00:01:05]}
{[%emt 00:00:26]} 34. Qc6 {[%clk 00:45:21]} {[%emt 00:00:04]} Rd8 {[%clk
00:01:30]} {[%emt 00:00:06]} 35. Bb4 {[%clk 00:43:42]} {[%emt 00:02:10]} Bf6
{[%clk 00:01:40]} {[%emt 00:00:18]} 36. Qb7 {[%clk 00:43:07]} {[%emt 00:01:06]}
Ng7 {[%clk 00:01:25]} {[%emt 00:00:45]} 37. Ba5 {[%clk 00:41:44]} {[%emt
00:01:53]} Rf8 {[%clk 00:01:37]} {[%emt 00:00:17]} 38. Qd7 {[%clk 00:42:05]}
{[%emt 00:00:10]} Ne8 {[%clk 00:00:57]} {[%emt 00:01:10]} 39. Bd8 {[%clk
00:42:21]} {[%emt 00:00:15]} Bxd8 {[%clk 00:01:13]} {[%emt 00:00:14]} 40. Qxd8
{[%clk 00:42:46]} {[%emt 00:00:05]} Kg7 {[%clk 00:01:03]} {[%emt 00:00:39]} 41.
Qxg5 {[%clk 00:43:10]} {[%emt 00:00:07]} Nf6 {[%clk 00:28:09]} {[%emt
00:03:23]} 42. f4 {[%clk 01:13:08]} {[%emt 00:00:32]} exf4 {[%clk 00:27:27]}
{[%emt 00:01:11]} 43. gxf4 {[%clk 01:13:29]} {[%emt 00:00:10]} Ne8 {[%clk
00:27:51]} {[%emt 00:00:06]} 44. e5 {[%clk 01:13:38]} {[%emt 00:00:21]} Rf7
{[%clk 00:27:27]} {[%emt 00:00:54]} 45. Kh2 {[%clk 01:12:59]} {[%emt 00:01:09]}
Kh7 {[%clk 00:25:58]} {[%emt 00:01:58]} 46. Qd8 {[%clk 01:12:57]} {[%emt
00:00:33]} Ng7 {[%clk 00:25:50]} {[%emt 00:00:38]} 47. e6 {[%clk 01:13:13]}
{[%emt 00:00:14]} Rxf4 {[%clk 00:26:03]} {[%emt 00:00:17]} 48. Qxd6 {[%clk
01:13:38]} {[%emt 00:00:06]} Rf2+ {[%clk 00:26:07]} {[%emt 00:00:25]} 49. Kg1
{[%clk 01:14:03]} {[%emt 00:00:06]} Re2 {[%clk 00:26:30]} {[%emt 00:00:06]} 50.
Qf8 {[%clk 01:14:07]} {[%emt 00:00:24]} Re1+ {[%clk 00:26:35]} {[%emt
00:00:27]} 51. Kf2 {[%clk 01:14:31]} {[%emt 00:00:07]} Re5 {[%clk 00:26:59]}
{[%emt 00:00:04]} 52. Qd6 {[%clk 01:13:59]} {[%emt 00:01:03]} Re3 {[%clk
00:26:54]} {[%emt 00:00:35]} 53. Qc7 {[%clk 01:13:45]} {[%emt 00:00:45]} Rxd3
{[%clk 00:27:00]} {[%emt 00:00:24]} 54. d6 {[%clk 01:14:08]} {[%emt 00:00:07]}
Kh6 {[%clk 00:27:14]} {[%emt 00:00:15]} 55. e7 {[%clk 01:14:02]} {[%emt
00:00:36]} Rd2+ {[%clk 00:27:36]} {[%emt 00:00:09]} 56. Ke1 {[%clk 01:14:20]}
{[%emt 00:00:12]} Rd4 {[%clk 00:27:10]} {[%emt 00:00:55]} 57. d7 {[%clk
01:14:25]} {[%emt 00:00:25]} Re4+ {[%clk 00:27:22]} {[%emt 00:00:19]} 58. Kd1
{[%clk 01:14:36]} {[%emt 00:00:17]} Rxe7 {[%clk 00:27:26]} {[%emt 00:00:28]} 59.
Qc1+ {[%clk 01:15:01]} {[%emt 00:00:04]} Kh7 {[%clk 00:27:32]} {[%emt
00:00:23]} 60. d8=Q {[%clk 01:15:26]} {[%emt 00:00:06]} 1-0

[Event "The Schackveckan 2023: IM-turnering"]
[Site "Goteborgs schackcentrum, Vegagatan 20, Gothenburg, Sweden"]
[Date "2023.08.06"]
[Round "3.1"]
[White "Storme, Isak"]
[Black "Sorensen, Hampus"]
[Result "1/2-1/2"]
[TimeControl "90 minutes for 40 moves + 30 minutes for the rest of the game + 30 seconds per move from move one."]
[WhiteTitle "IM"]
[BlackTitle "IM"]
[WhiteFideId "1728113"]
[BlackFideId "8703884"]
[WhiteElo "2448"]
[BlackElo "2475"]

1. e4 {[%clk 01:30:57]} {[%emt 00:00:01]} e5 {[%clk 01:30:33]} {[%emt
00:00:28]} 2. Nf3 {[%clk 01:31:19]} {[%emt 00:00:08]} Nc6 {[%clk 01:30:55]}
{[%emt 00:00:08]} 3. Bb5 {[%clk 01:31:34]} {[%emt 00:00:15]} a6 {[%clk
01:30:56]} {[%emt 00:00:29]} 4. Ba4 {[%clk 01:31:35]} {[%emt 00:00:29]} Nf6
{[%clk 01:31:09]} {[%emt 00:00:17]} 5. O-O {[%clk 01:31:07]} {[%emt 00:00:58]}
Bc5 {[%clk 01:29:41]} {[%emt 00:01:58]} 6. c3 {[%clk 01:30:14]} {[%emt
00:01:23]} b5 {[%clk 01:30:01]} {[%emt 00:00:10]} 7. Bc2 {[%clk 01:30:22]}
{[%emt 00:00:21]} d5 {[%clk 01:29:44]} {[%emt 00:00:48]} 8. d4 {[%clk
01:19:01]} {[%emt 00:11:51]} dxe4 {[%clk 01:29:47]} {[%emt 00:00:28]} 9. Nbd2
{[%clk 01:17:57]} {[%emt 00:01:33]} exf3 {[%clk 01:09:52]} {[%emt 00:20:26]} 10.
Qxf3 {[%clk 01:18:11]} {[%emt 00:00:15]} Be7 {[%clk 01:06:30]} {[%emt
00:03:52]} 11. Qxc6+ {[%clk 01:17:50]} {[%emt 00:00:52]} Bd7 {[%clk 01:06:55]}
{[%emt 00:00:04]} 12. Qf3 {[%clk 01:18:05]} {[%emt 00:00:14]} exd4 {[%clk
01:06:31]} {[%emt 00:00:56]} 13. Ne4 {[%clk 01:15:29]} {[%emt 00:03:04]} O-O
{[%clk 01:02:44]} {[%emt 00:04:17]} 14. Rd1 {[%clk 00:59:13]} {[%emt 00:16:47]}
Qc8 {[%clk 00:51:28]} {[%emt 00:11:46]} 15. Rxd4 {[%clk 00:57:40]} {[%emt
00:02:03]} c5 {[%clk 00:50:44]} {[%emt 00:01:14]} 16. Nxf6+ {[%clk 00:49:01]}
{[%emt 00:09:09]} Bxf6 {[%clk 00:51:01]} {[%emt 00:00:13]} 17. Rd6 {[%clk
00:47:41]} {[%emt 00:01:50]} Be7 {[%clk 00:41:00]} {[%emt 00:10:31]} 18. Qh5
{[%clk 00:37:39]} {[%emt 00:10:31]} g6 {[%clk 00:34:15]} {[%emt 00:07:16]} 19.
Bxg6 {[%clk 00:37:47]} {[%emt 00:00:22]} hxg6 {[%clk 00:34:15]} {[%emt
00:00:30]} 20. Rxg6+ {[%clk 00:38:09]} {[%emt 00:00:07]} fxg6 {[%clk 00:34:41]}
{[%emt 00:00:05]} 21. Qxg6+ {[%clk 00:38:33]} {[%emt 00:00:06]} Kh8 {[%clk
00:35:05]} {[%emt 00:00:05]} 22. Qh6+ {[%clk 00:38:59]} {[%emt 00:00:04]} Kg8
{[%clk 00:35:31]} {[%emt 00:00:05]} 23. Qg6+ {[%clk 00:39:24]} {[%emt
00:00:05]} Kh8 {[%clk 00:35:57]} {[%emt 00:00:04]} 24. Qh6+ {[%clk 00:39:49]}
{[%emt 00:00:05]} Kg8 {[%clk 00:36:22]} {[%emt 00:00:05]} 25. Qg6+ {[%clk
00:40:14]} {[%emt 00:00:05]} Kh8 {[%clk 00:36:48]} {[%emt 00:00:03]} 26. Qh6+
{[%clk 00:40:38]} {[%emt 00:00:07]} Kg8 {[%clk 00:37:15]} {[%emt 00:00:03]} 27.
Qg6+ {[%clk 00:41:02]} {[%emt 00:00:05]} 1/2-1/2

[Event "The Schackveckan 2023: IM-turnering"]
[Site "Goteborgs schackcentrum, Vegagatan 20, Gothenburg, Sweden"]
[Date "2023.08.06"]
[Round "3.2"]
[White "Tryggestad, Andreas Garberg"]
[Black "Kistrup, Nicolai"]
[Result "1/2-1/2"]
[TimeControl "90 minutes for 40 moves + 30 minutes for the rest of the game + 30 seconds per move from move one."]
[WhiteTitle "FM"]
[BlackTitle "FM"]
[WhiteFideId "1513338"]
[BlackFideId "1444816"]
[WhiteElo "2233"]
[BlackElo "2339"]

1. d4 {[%clk 01:30:57]} {[%emt 00:00:02]} Nf6 {[%clk 01:30:09]} {[%emt
00:00:51]} 2. c4 {[%clk 01:31:21]} {[%emt 00:00:07]} e6 {[%clk 01:30:34]}
{[%emt 00:00:04]} 3. Nf3 {[%clk 01:31:47]} {[%emt 00:00:04]} d5 {[%clk
01:31:00]} {[%emt 00:00:05]} 4. Nc3 {[%clk 01:32:13]} {[%emt 00:00:04]} Bb4
{[%clk 01:30:03]} {[%emt 00:01:28]} 5. Bg5 {[%clk 01:32:36]} {[%emt 00:00:06]}
dxc4 {[%clk 01:27:03]} {[%emt 00:03:29]} 6. e4 {[%clk 01:15:32]} {[%emt
00:17:35]} c5 {[%clk 01:27:03]} {[%emt 00:00:30]} 7. Bxc4 {[%clk 01:15:16]}
{[%emt 00:00:46]} cxd4 {[%clk 01:26:01]} {[%emt 00:01:32]} 8. Nxd4 {[%clk
01:15:30]} {[%emt 00:00:16]} Bxc3+ {[%clk 01:24:00]} {[%emt 00:02:30]} 9. bxc3
{[%clk 01:15:57]} {[%emt 00:00:03]} Qa5 {[%clk 01:24:15]} {[%emt 00:00:15]} 10.
Nb5 {[%clk 01:08:45]} {[%emt 00:07:42]} Nxe4 {[%clk 01:20:47]} {[%emt
00:03:58]} 11. Qd4 {[%clk 01:06:43]} {[%emt 00:02:32]} O-O {[%clk 01:13:19]}
{[%emt 00:07:58]} 12. Qxe4 {[%clk 01:01:28]} {[%emt 00:05:45]} a6 {[%clk
01:12:31]} {[%emt 00:01:18]} 13. Be7 {[%clk 00:57:43]} {[%emt 00:04:15]} axb5
{[%clk 01:11:27]} {[%emt 00:01:35]} 14. Bb4 {[%clk 00:48:10]} {[%emt 00:10:03]}
Qc7 {[%clk 01:11:19]} {[%emt 00:00:37]} 15. Bxf8 {[%clk 00:42:34]} {[%emt
00:06:06]} Kxf8 {[%clk 01:11:15]} {[%emt 00:00:34]} 16. Bb3 {[%clk 00:31:00]}
{[%emt 00:12:05]} Qxc3+ {[%clk 01:11:32]} {[%emt 00:00:12]} 17. Ke2 {[%clk
00:31:28]} {[%emt 00:00:02]} Qb2+ {[%clk 01:07:58]} {[%emt 00:04:04]} 18. Ke3
{[%clk 00:29:48]} {[%emt 00:02:11]} Qc3+ {[%clk 01:07:15]} {[%emt 00:01:12]} 19.
Ke2 {[%clk 00:27:17]} {[%emt 00:03:01]} Qb2+ {[%clk 01:07:39]} {[%emt
00:00:06]} 20. Ke3 {[%clk 00:27:43]} {[%emt 00:00:04]} Qc3+ {[%clk 01:08:03]}
{[%emt 00:00:06]} 21. Ke2 {[%clk 00:23:43]} {[%emt 00:07:13]} Qb2+ {[%clk
01:08:57]} {[%emt 00:00:21]} 1/2-1/2

[Event "The Schackveckan 2023: IM-turnering"]
[Site "Goteborgs schackcentrum, Vegagatan 20, Gothenburg, Sweden"]
[Date "2023.08.06"]
[Round "3.3"]
[White "Ustianovich, Nazar"]
[Black "Olsson, William"]
[Result "1-0"]
[TimeControl "90 minutes for 40 moves + 30 minutes for the rest of the game + 30 seconds per move from move one."]
[WhiteTitle "FM"]
[BlackTitle "FM"]
[WhiteFideId "14109778"]
[BlackFideId "1741721"]
[WhiteElo "2314"]
[BlackElo "2400"]

1. e4 {[%clk 01:26:49]} {[%emt 00:04:10]} c5 {[%clk 01:30:41]} {[%emt
00:00:20]} 2. Nf3 {[%clk 01:27:15]} {[%emt 00:00:04]} d6 {[%clk 01:31:08]}
{[%emt 00:00:03]} 3. d4 {[%clk 01:27:41]} {[%emt 00:00:05]} cxd4 {[%clk
01:31:34]} {[%emt 00:00:03]} 4. Nxd4 {[%clk 01:28:05]} {[%emt 00:00:06]} Nf6
{[%clk 01:31:59]} {[%emt 00:00:05]} 5. Nc3 {[%clk 01:28:31]} {[%emt 00:00:04]}
g6 {[%clk 01:32:23]} {[%emt 00:00:06]} 6. Be3 {[%clk 01:28:54]} {[%emt
00:00:08]} Bg7 {[%clk 01:32:49]} {[%emt 00:00:04]} 7. f3 {[%clk 01:29:21]}
{[%emt 00:00:03]} Nc6 {[%clk 01:33:14]} {[%emt 00:00:04]} 8. Qd2 {[%clk
01:29:46]} {[%emt 00:00:06]} O-O {[%clk 01:33:37]} {[%emt 00:00:06]} 9. O-O-O
{[%clk 01:30:10]} {[%emt 00:00:06]} d5 {[%clk 01:34:02]} {[%emt 00:00:05]} 10.
Nxc6 {[%clk 01:30:29]} {[%emt 00:00:11]} bxc6 {[%clk 01:34:25]} {[%emt
00:00:07]} 11. exd5 {[%clk 01:30:57]} {[%emt 00:00:03]} cxd5 {[%clk 01:34:27]}
{[%emt 00:00:28]} 12. Bh6 {[%clk 01:17:41]} {[%emt 00:13:45]} Bxh6 {[%clk
01:29:29]} {[%emt 00:05:28]} 13. Qxh6 {[%clk 01:18:07]} {[%emt 00:00:05]} e5
{[%clk 01:29:53]} {[%emt 00:00:05]} 14. h4 {[%clk 01:16:58]} {[%emt 00:01:39]}
Bb7 {[%clk 01:24:01]} {[%emt 00:06:23]} 15. h5 {[%clk 00:37:24]} {[%emt
00:40:03]} Qe7 {[%clk 01:22:16]} {[%emt 00:02:15]} 16. hxg6 {[%clk 00:35:48]}
{[%emt 00:02:07]} fxg6 {[%clk 01:22:36]} {[%emt 00:00:09]} 17. Bd3 {[%clk
00:31:43]} {[%emt 00:04:36]} Rac8 {[%clk 01:14:37]} {[%emt 00:08:29]} 18. Rde1
{[%clk 00:31:47]} {[%emt 00:00:26]} a6 {[%clk 01:08:11]} {[%emt 00:06:55]} 19.
Qg5 {[%clk 00:26:55]} {[%emt 00:05:23]} Rfe8 {[%clk 01:05:02]} {[%emt
00:03:38]} 20. Bxg6 {[%clk 00:20:30]} {[%emt 00:06:55]} hxg6 {[%clk 01:05:08]}
{[%emt 00:00:24]} 21. Rh6 {[%clk 00:20:49]} {[%emt 00:00:11]} Kf7 {[%clk
00:38:38]} {[%emt 00:27:00]} 22. Qxg6+ {[%clk 00:21:04]} {[%emt 00:00:15]} Ke6
{[%clk 00:39:03]} {[%emt 00:00:05]} 23. g4 {[%clk 00:21:01]} {[%emt 00:00:32]}
Rc4 {[%clk 00:36:55]} {[%emt 00:02:39]} 24. Qf5+ {[%clk 00:20:35]} {[%emt
00:00:56]} Kd6 {[%clk 00:37:21]} {[%emt 00:00:03]} 25. Rxf6+ {[%clk 00:20:52]}
{[%emt 00:00:14]} Kc5 {[%clk 00:37:44]} {[%emt 00:00:07]} 26. Rf7 {[%clk
00:20:09]} {[%emt 00:01:13]} Qh4 {[%clk 00:38:10]} {[%emt 00:00:04]} 27. Rxe5
{[%clk 00:13:30]} Qh1+ {[%clk 00:38:35]} {[%emt 00:07:14]} 28. Nd1 {[%clk
00:13:31]} {[%emt 00:00:29]} Rd4 {[%clk 00:38:36]} {[%emt 00:00:29]} 29. b4+
{[%clk 00:10:00]} {[%emt 00:04:01]} Kb5 {[%clk 00:32:54]} {[%emt 00:06:12]} 30.
Rxb7+ {[%clk 00:08:54]} {[%emt 00:01:36]} Ka4 {[%clk 00:33:19]} {[%emt
00:00:05]} 31. Kb2 {[%clk 00:08:49]} {[%emt 00:00:35]} 1-0